bitfinex/quotes_SOLUSD_20240906
["timestamp","ask_amount","ask_price","bid_price","bid_amount"]
[1725609137670,0.8287083,129.13,129.1,52.7457]
[1725609138470,0.8287083,129.13,129.1,45.0]
[1725609139391,7.7458,129.11,129.07,16.0344]
[1725609139607,7.7449,129.12,129.08,1.02124699]
[1725609139769,20.8287083,129.13,129.08,1.02124699]
[1725609139770,20.0,129.11,129.08,1.02124699]
[1725609139971,28.5730083,129.13,129.07,23.782]
[1725609140880,20.8287083,129.13,129.08,45.66137314]
[1725609141087,20.8287083,129.13,129.09,7.7461]
[1725609141285,0.8287083,129.13,129.1,45.66170444]
[1725609141478,0.8287083,129.13,129.1,45.0]
[1725609142503,0.8287083,129.13,129.09,45.0]
[1725609142677,0.8287083,129.13,129.09,52.7462]
[1725609144976,0.8287083,129.13,129.09,72.1124]
[1725609146386,0.8287083,129.13,129.09,64.3662]
[1725609146591,0.8287083,129.13,129.08,7.7466]
[1725609146793,0.8287083,129.13,129.08,27.1142]
[1725609147090,0.8287083,129.13,129.09,7.7464]
[1725609147287,8.5729083,129.13,129.08,27.1143]
[1725609147494,20.0,129.12,129.08,19.3676]
[1725609148307,20.0,129.12,129.09,45.0]
[1725609148686,20.8287083,129.13,129.09,45.0]
[1725609149988,28.5729083,129.13,129.09,45.0]
[1725609150192,20.8287083,129.13,129.09,45.0]
[1725609150406,0.8287083,129.13,129.09,45.0]
[1725609150910,8.5730083,129.13,129.08,52.747]
[1725609151087,20.0,129.12,129.08,52.747]
[1725609151402,8.5730083,129.13,129.08,45.0]
[1725609151608,7.7453,129.11,129.08,45.0]
[1725609151797,27.7451,129.12,129.08,45.0]
[1725609153520,27.7451,129.12,129.04,35.8692]
[1725609153521,7.7465,129.09,129.04,35.8692]
[1725609153680,20.0,129.12,129.01,35.8743]
[1725609153884,7.7478,129.07,129.01,43.6254]
[1725609154521,15.627,129.09,129.01,16.4964]
[1725609154828,7.7514,129.01,128.97,16.4964]
[1725609155109,7.7514,129.01,128.95,27.1414]
[1725609155281,7.7529,128.99,128.94,16.4964]
[1725609155485,20.0,128.98,128.94,16.4964]
[1725609156094,20.0,128.99,128.94,24.2517]
[1725609156293,27.7526,128.99,128.94,16.4964]
[1725609156591,20.0,128.99,128.94,16.4964]
[1725609156994,20.0,129.03,128.94,16.4964]
[1725609157188,20.0,129.03,128.94,35.8845]
[1725609157402,7.7512,129.02,128.95,7.7543]
[1725609157608,20.0,129.01,128.96,1.54699052]
[1725609158295,20.0,129.01,128.96,46.54699052]
[1725609158490,20.0,129.01,128.96,54.30119052]
[1725609158790,14.0727,129.04,128.96,46.54699052]
[1725609158998,7.7502,129.03,128.98,19.3823]
[1725609159309,19.3735,129.05,128.99,45.0]
[1725609159510,7.7514,129.01,128.99,45.0]
[1725609159896,19.3735,129.05,128.99,45.0]
[1725609159897,7.7508,129.02,128.99,45.0]
[1725609160207,20.0,129.01,128.99,45.0]
[1725609161817,20.0,129.02,128.98,45.0]
[1725609163192,20.0,129.02,128.98,64.3825]
[1725609163413,7.7501,129.03,128.98,64.3825]
[1725609163608,20.0,129.06,128.98,45.0]
[1725609163609,27.7509,129.02,128.98,45.0]
[1725609163813,27.7509,129.02,128.97,45.0]
[1725609164112,27.7509,129.02,128.96,45.0]
[1725609164519,27.7511,129.02,128.96,52.7543]
[1725609164696,27.7511,129.02,128.97,7.7536]
[1725609164697,20.0,129.02,128.97,7.7536]
[1725609164897,20.0,129.02,128.98,45.0]
[1725609165410,27.7507,129.02,128.98,45.0]
[1725609166619,20.0,129.02,128.98,45.0]
[1725609167598,20.0,129.02,128.98,52.7531]
[1725609168296,9.65809858,129.07,128.99,19.3808]
[1725609168498,7.7491,129.05,129.0,52.7515]
[1725609169217,7.7485,129.06,129.01,0.83349978]
[1725609169421,7.7492,129.05,129.01,0.83349978]
[1725609169918,20.0,129.04,129.01,0.83349978]
[1725609172331,20.0,129.04,129.0,52.7515]
[1725609174327,20.0,129.04,129.01,7.7512]
[1725609174499,7.7484,129.06,129.02,45.0]
[1725609174500,20.0,129.05,129.02,45.0]
[1725609174816,20.0,129.05,129.02,52.7502]
[1725609175020,20.0,129.06,129.02,52.7502]
[1725609177821,27.7484,129.06,129.02,45.0]
[1725609180607,20.0,129.06,129.02,45.0]
[1725609180820,7.7491,129.05,129.02,45.0]
[1725609181142,20.0,129.04,129.01,45.0]
[1725609183029,18.73496643,129.09,129.01,45.0]
[1725609183326,18.73496643,129.09,129.03,7.7501]
[1725609183327,7.7474,129.08,129.03,7.7501]
[1725609183503,20.0,129.07,129.04,45.0]
[1725609183699,20.0,129.07,129.04,52.7494]
[1725609183919,6.5804,129.11,129.06,7.7482]
[1725609183920,7.7453,129.11,129.06,7.7482]
[1725609184126,20.1895083,129.13,129.04,45.0]
[1725609184127,23.1205,129.12,129.07,52.7477]
[1725609184447,8.5730083,129.13,129.08,7.747]
[1725609184602,8.5730083,129.13,129.09,45.0]
[1725609185336,7.7447,129.12,129.09,45.0]
[1725609185537,7.7454,129.11,129.08,45.0]
[1725609185830,20.0,129.1,129.08,45.0]
[1725609186207,7.7449,129.12,129.08,45.0]
[1725609186419,20.0,129.11,129.08,45.0]
[1725609187510,20.0,129.12,129.08,45.0]
[1725609187705,20.0,129.12,129.08,52.7466]
[1725609188128,27.7448,129.12,129.08,45.0]
[1725609188320,8.5730083,129.13,129.08,52.747]
[1725609190035,20.0,129.12,129.08,52.747]
[1725609190546,27.7452,129.12,129.08,45.0]
[1725609191123,20.0,129.12,129.08,45.0]
[1725609191326,7.7449,129.12,129.08,45.0]
[1725609191530,20.0,129.11,129.08,45.0]
[1725609193211,20.0,129.11,129.05,16.041]
[1725609193520,7.7473,129.08,129.05,16.041]
[1725609193722,7.7467,129.09,129.05,16.041]
[1725609193950,20.0,129.08,129.05,16.041]
[1725609195721,20.0,129.08,129.06,45.0]
[1725609196441,20.0,129.09,129.06,45.0]
[1725609196611,27.7465,129.09,129.06,45.0]
[1725609198222,7.7472,129.08,129.06,45.0]
[1725609198521,27.7477,129.07,129.06,45.0]
[1725609199727,20.0,129.07,129.06,45.0]
[1725609201339,20.0,129.07,129.05,45.0]
[1725609201542,20.0,129.08,129.05,45.0]
[1725609201923,20.0,129.08,129.04,45.0]
[1725609202124,20.0,129.08,129.01,22.6425]
[1725609202125,23.01965024,129.11,129.01,22.6425]
[1725609202350,7.749,129.05,129.01,22.6425]
[1725609202640,7.7486,129.06,129.01,30.3937]
[1725609202825,20.0,129.05,129.01,30.3937]
[1725609203020,7.7486,129.06,129.01,30.3937]
[1725609203227,27.749,129.05,129.01,22.6425]
[1725609203432,7.749,129.05,129.01,22.6425]
[1725609205361,7.7487,129.06,129.02,45.0]
[1725609205550,20.0,129.05,129.02,64.3766]
[1725609205850,7.7473,129.08,129.02,64.3766]
[1725609206050,7.7478,129.07,129.02,72.1268]
[1725609206457,20.0,129.06,129.02,72.1268]
[1725609206762,18.50951405,129.1,129.02,64.3766]
[1725609207059,7.7469,129.09,129.04,7.7495]
[1725609207243,7.7469,129.09,129.05,45.0]
[1725609208058,20.0,129.08,129.05,45.0]
[1725609208444,17.71857115,129.09,129.02,27.1268]
[1725609209757,7.7482,129.07,129.03,45.0]
[1725609209965,17.71857115,129.09,129.03,45.0]
[1725609210145,7.7487,129.06,129.02,52.7507]
[1725609210345,7.7481,129.07,129.02,52.7507]
[1725609210746,20.0,129.06,129.02,52.7507]
[1725609211054,7.7483,129.06,129.02,52.7507]
[1725609211260,20.0,129.05,129.02,45.0]
[1725609211446,7.7486,129.06,129.02,45.0]
[1725609211634,20.0,129.05,129.02,45.0]
[1725609211832,27.7491,129.05,129.02,45.0]
[1725609212055,7.7498,129.04,129.02,45.0]
[1725609212457,20.0,129.05,128.98,15.7035]
[1725609212760,19.3709,129.06,128.98,23.4565]
[1725609213165,20.0,129.05,128.98,23.4565]
[1725609213339,7.7506,129.03,128.98,23.4565]
[1725609213530,20.0,129.02,128.98,23.4565]
[1725609214762,20.0,129.02,128.99,45.0]
[1725609216358,7.7506,129.03,128.99,45.0]
[1725609216665,20.0,129.02,128.99,45.0]
[1725609217567,27.7507,129.02,128.99,45.0]
[1725609218367,20.0,129.02,128.99,45.0]
[1725609218548,3.05589886,129.05,128.99,64.3812]
[1725609218740,7.7493,129.05,129.0,7.7515]
[1725609218944,27.7495,129.04,129.01,45.0]
[1725609219247,27.7495,129.04,128.99,72.1334]
[1725609219568,7.7501,129.03,128.99,72.1334]
[1725609220074,27.7507,129.02,128.99,45.0]
[1725609220367,7.7507,129.02,128.99,45.0]
[1725609220870,7.7507,129.02,128.98,15.7035]
[1725609221639,7.7521,129.0,128.96,27.1387]
[1725609222062,20.0,129.04,128.96,27.1387]
[1725609222063,7.7515,129.01,128.96,27.1387]
[1725609223142,7.7515,129.01,128.97,45.0]
[1725609224035,7.752,129.0,128.97,45.0]
[1725609224540,20.0,128.99,128.92,19.3918]
[1725609224741,7.7543,128.96,128.91,29.9858]
[1725609224960,7.755,128.95,128.91,29.9858]
[1725609225164,7.755,128.95,128.9,19.3948]
[1725609225165,19.3844,128.97,128.88,15.563]
[1725609225366,19.3844,128.97,128.88,23.3217]
[1725609225367,7.7567,128.93,128.88,23.3217]
[1725609225960,7.7551,128.95,128.9,7.7578]
[1725609226167,20.0,128.94,128.91,7.7569]
[1725609226467,74.3818,129.0,128.91,7.7569]
[1725609226468,7.7538,128.97,128.92,7.7566]
[1725609226674,20.0,128.96,128.93,45.0]
[1725609228045,27.7544,128.96,128.93,45.0]
[1725609228378,6.2326,129.02,128.94,7.7554]
[1725609228565,7.7517,129.01,128.96,7.7538]
[1725609228747,7.7517,129.01,128.97,45.0]
[1725609229456,7.7519,129.0,128.97,45.0]
[1725609230056,20.0,128.99,128.97,45.0]
[1725609230970,20.0,128.99,128.96,45.0]
[1725609231488,27.7529,128.99,128.96,45.0]
[1725609233370,7.7537,128.97,128.93,15.6421]
[1725609234460,7.7537,128.97,128.93,23.398]
[1725609234849,7.7537,128.97,128.94,45.0]
[1725609236175,7.7537,128.97,128.95,1.55069652]
[1725609237583,7.7537,128.97,128.94,45.0]
[1725609240455,20.0,128.96,128.9,27.1523]
[1725609240967,20.0,128.97,128.9,27.1523]
[1725609241179,7.7565,128.93,128.89,15.5944]
[1725609241372,7.7568,128.92,128.89,15.5944]
[1725609241587,7.7568,128.92,128.87,27.1574]
[1725609241756,7.7575,128.91,128.87,27.1574]
[1725609242183,7.7579,128.9,128.86,30.7466]
[1725609242392,7.7579,128.9,128.86,24.3011]
[1725609244483,6.3385,128.94,128.84,19.4024]
[1725609244484,7.7587,128.89,128.85,7.7606]
[1725609244690,20.0,128.88,128.84,27.1637]
[1725609245489,20.0,128.88,128.85,1.55069715]
[1725609245800,20.0,128.88,128.84,27.1637]
[1725609245968,7.7603,128.86,128.81,19.4069]
[1725609246173,20.0,128.85,128.81,27.1698]
[1725609246476,7.7616,128.84,128.8,7.7635]
[1725609246689,7.7616,128.84,128.79,16.1222]
[1725609246690,20.0,128.83,128.78,7.7651]
[1725609247162,20.0,128.83,128.79,7.7643]
[1725609247359,7.7622,128.83,128.78,7.765]
[1725609247584,20.0,128.82,128.78,7.765]
[1725609249476,7.7635,128.81,128.77,19.4138]
[1725609249671,20.0,128.8,128.78,45.0]
[1725609249878,20.0,128.8,128.77,19.4138]
[1725609250296,20.0,128.8,128.74,19.4182]
[1725609250490,20.0,128.82,128.74,19.4182]
[1725609251409,7.765,128.79,128.74,27.1856]
[1725609251612,20.0,128.78,128.74,27.1856]
[1725609251976,20.0,128.78,128.76,7.7661]
[1725609252184,27.7645,128.8,128.75,7.7665]
[1725609252906,20.0,128.8,128.77,7.7657]
[1725609253101,20.0,128.81,128.78,45.0]
[1725609253815,20.0,128.81,128.78,52.7651]
[1725609254186,20.0,128.82,128.79,7.7645]
[1725609254395,20.0,128.82,128.8,45.0]
[1725609254587,6.5364,128.86,128.8,45.0]
[1725609254791,6.5364,128.86,128.8,52.7636]
[1725609254994,6.5364,128.86,128.8,45.0]
[1725609254995,7.7619,128.84,128.8,45.0]
[1725609255597,6.5364,128.86,128.8,64.4096]
[1725609255598,7.7611,128.85,128.8,64.4096]
[1725609256190,16.0786,128.87,128.81,7.7628]
[1725609256191,7.7603,128.86,128.81,7.7628]
[1725609256505,16.0786,128.87,128.8,64.4096]
[1725609256506,7.7599,128.87,128.82,52.7627]
[1725609256715,7.7599,128.87,128.82,7.7627]
[1725609256884,7.7599,128.87,128.83,45.0]
[1725609257081,21.0995,128.85,128.72,16.0226]
[1725609257284,21.0995,128.85,128.73,50.0]
[1725609257607,7.7631,128.82,128.76,27.1815]
[1725609257918,7.7641,128.8,128.75,7.7667]
[1725609258082,27.7647,128.79,128.75,7.7667]
[1725609258608,7.7652,128.78,128.74,7.7674]
[1725609258786,7.7652,128.78,128.73,27.1874]
[1725609259288,22.0618,128.78,128.69,19.4251]
[1725609259498,39.4149,128.77,128.69,19.4251]
[1725609259808,7.7676,128.74,128.69,27.1952]
[1725609260114,20.0,128.73,128.69,27.1952]
[1725609260290,3.15439921,128.79,128.71,19.4227]
[1725609260605,3.15439921,128.79,128.73,7.7681]
[1725609260606,7.7653,128.78,128.73,7.7681]
[1725609260799,20.0,128.77,128.74,45.0]
[1725609261105,27.7658,128.77,128.74,45.0]
[1725609261311,27.7658,128.77,128.73,45.0]
[1725609261882,27.7658,128.77,128.72,7.7685]
[1725609262509,7.7664,128.76,128.72,7.7685]
[1725609263412,27.7659,128.77,128.72,7.7685]
[1725609263798,27.7659,128.77,128.73,45.0]
[1725609264614,20.0,128.77,128.74,7.7675]
[1725609264912,20.0,128.77,128.75,45.0]
[1725609265106,27.7658,128.77,128.75,45.0]
[1725609265322,27.7658,128.77,128.74,45.0]
[1725609268718,20.0,128.77,128.74,52.7675]
[1725609269058,27.7659,128.77,128.74,45.0]
[1725609272428,27.7659,128.77,128.7,19.4241]
[1725609272429,20.0,128.77,128.7,19.4241]
[1725609272724,7.7685,128.73,128.69,7.7702]
[1725609273245,7.7688,128.72,128.68,24.8763083]
[1725609273744,7.7688,128.72,128.68,8.5997083]
[1725609274342,7.7695,128.71,128.68,0.8287083]
[1725609274642,7.7689,128.72,128.68,8.5997083]
[1725609274845,7.7689,128.72,128.69,7.7705]
[1725609275634,7.7683,128.73,128.69,7.7705]
[1725609275823,15.0151,128.76,128.7,7.7697]
[1725609276022,20.0,128.75,128.71,45.0]
[1725609277440,7.7677,128.74,128.71,45.0]
[1725609277626,20.0,128.73,128.71,45.0]
[1725609278150,27.7684,128.73,128.71,45.0]
[1725609278347,27.7684,128.73,128.7,45.0]
[1725609283169,20.0,128.73,128.7,45.0]
[1725609283342,20.0,128.75,128.69,45.0]
[1725609283664,20.0,128.75,128.68,28.0260083]
[1725609284340,7.7694,128.71,128.68,28.0260083]
[1725609284863,7.77,128.7,128.69,45.0]
[1725609285159,27.77,128.7,128.69,45.0]
[1725609285965,20.0,128.7,128.69,45.0]
[1725609286143,20.0,128.7,128.68,45.8287083]
[1725609286968,27.7701,128.7,128.68,0.8287083]
[1725609289544,7.7706,128.69,128.68,0.8287083]
[1725609289854,20.0,128.7,128.68,0.8287083]
[1725609289855,27.7701,128.7,128.68,0.8287083]
[1725609290447,7.7706,128.69,128.68,0.8287083]
[1725609290851,19.4217,128.73,128.68,0.8287083]
[1725609291061,20.0,128.72,128.68,0.8287083]
[1725609291368,7.7691,128.72,128.68,0.8287083]
[1725609291565,7.7691,128.72,128.68,8.5996083]
[1725609291754,7.7694,128.71,128.69,45.0]
[1725609292267,7.77,128.7,128.69,45.0]
[1725609292578,7.7706,128.69,128.68,0.8287083]
[1725609294071,27.7706,128.69,128.68,0.8287083]
[1725609300152,7.7731,128.65,128.62,35.0327]
[1725609300358,7.7731,128.65,128.63,45.0]
[1725609301383,20.0,128.69,128.63,45.0]
[1725609301581,7.7724,128.66,128.63,45.0]
[1725609302160,7.772,128.67,128.63,52.7742]
[1725609302360,20.0,128.66,128.63,52.7742]
[1725609302783,27.7725,128.66,128.63,45.0]
[1725609302980,7.7736,128.64,128.63,45.0]
[1725609303187,7.7736,128.64,128.59,34.6036]
[1725609303459,7.7736,128.64,128.59,42.3801]
[1725609304076,20.0,128.66,128.59,34.6036]
[1725609304266,20.0,128.67,128.59,34.6036]
[1725609304470,7.7739,128.64,128.6,45.0]
[1725609305284,7.7742,128.63,128.6,45.0]
[1725609306362,20.0,128.67,128.6,45.0]
[1725609306563,7.7737,128.64,128.6,45.0]
[1725609306787,19.425,128.7,128.61,50.0]
[1725609307015,19.425,128.7,128.63,15.888]
[1725609307283,7.7736,128.64,128.63,15.888]
[1725609307493,19.4312,128.66,128.59,15.888]
[1725609307660,7.7744,128.63,128.59,23.6644]
[1725609309191,7.7744,128.63,128.6,45.0]
[1725609309690,7.7754,128.61,128.6,45.0]
[1725609310683,7.776,128.6,128.59,15.888]
[1725609311266,7.776,128.6,128.56,16.6418]
[1725609311572,7.7768,128.59,128.56,16.6418]
[1725609311993,7.7762,128.6,128.56,16.6418]
[1725609312472,7.7762,128.6,128.56,24.4202]
[1725609313393,7.7758,128.61,128.56,24.42]
[1725609313599,7.7762,128.6,128.56,24.4202]
[1725609314295,7.7762,128.6,128.57,45.0]
[1725609315667,19.4343,128.64,128.57,64.4444]
[1725609315871,20.0,128.63,128.58,7.7768]
[1725609316072,20.0,128.63,128.59,45.0]
[1725609316273,7.7733,128.65,128.59,114.4413]
[1725609316495,7.7736,128.64,128.59,114.4413]
[1725609317017,7.7732,128.65,128.61,7.7754]
[1725609317292,7.7732,128.65,128.62,45.0]
[1725609318206,19.4309,128.67,128.62,45.0]
[1725609318402,7.7742,128.63,128.62,45.0]
[1725609319883,7.7736,128.64,128.62,45.0]
[1725609320202,7.7736,128.64,128.61,45.0]
[1725609323280,7.7744,128.63,128.61,45.0]
[1725609323577,7.7744,128.63,128.6,45.0]
[1725609323901,39.4324,128.66,128.6,45.0]
[1725609324209,7.775,128.62,128.58,7.777]
[1725609324502,7.775,128.62,128.58,7.7769]
[1725609326001,7.775,128.62,128.59,45.0]
[1725609327102,7.7746,128.63,128.6,1.5541014]
[1725609327301,7.7739,128.64,128.61,1.55449018]
[1725609327491,20.0,128.63,128.61,45.0]
[1725609327693,7.7742,128.63,128.6,7.7756]
[1725609327878,7.7742,128.63,128.61,45.0]
[1725609328076,7.7742,128.63,128.59,64.4415]
[1725609328281,39.4324,128.66,128.59,64.4415]
[1725609328476,7.7752,128.62,128.59,45.0]
[1725609328911,39.4324,128.66,128.62,7.7746]
[1725609328912,7.7729,128.66,128.62,7.7746]
[1725609329125,7.7729,128.66,128.63,45.0]
[1725609330007,7.773,128.65,128.63,45.0]
[1725609330323,7.7726,128.66,128.63,45.0]
[1725609332088,7.773,128.65,128.63,45.0]
[1725609333139,24.07716817,128.72,128.63,45.0]
[1725609333140,21.062,128.72,128.64,50.0]
[1725609333439,7.7689,128.72,128.68,7.7711]
[1725609333592,7.7689,128.72,128.69,45.0]
[1725609333996,7.7683,128.73,128.69,45.0]
[1725609334193,38.8231,128.79,128.7,27.1944]
[1725609334194,7.7679,128.74,128.7,27.1944]
[1725609334422,7.7679,128.74,128.71,45.0]
[1725609334621,19.414,128.78,128.71,52.7691]
[1725609334622,7.767,128.75,128.71,52.7691]
[1725609334798,19.414,128.78,128.71,45.0]
[1725609335006,7.7664,128.76,128.72,27.1903]
[1725609335318,7.7664,128.76,128.73,45.0]
[1725609336319,7.7671,128.75,128.73,45.0]
[1725609337408,7.7667,128.76,128.73,45.0]
[1725609338502,16.088,128.8,128.73,45.0]
[1725609338718,7.7655,128.78,128.73,52.7678]
[1725609338931,20.0,128.77,128.73,52.7678]
[1725609339116,27.7658,128.77,128.73,52.7678]
[1725609342621,7.7665,128.76,128.73,45.0]
[1725609343323,27.7659,128.77,128.73,52.768]
[1725609343913,7.7664,128.76,128.73,45.0]
[1725609344942,27.7659,128.77,128.73,52.7679]
[1725609346041,25.7258,128.82,128.74,19.4187]
[1725609346222,7.7649,128.79,128.75,45.0]
[1725609346433,7.7649,128.79,128.75,52.7665]
[1725609346721,7.7649,128.79,128.75,52.7667]
[1725609347332,7.7649,128.79,128.71,115.25801291]
[1725609347333,7.7671,128.75,128.71,43.2461]
[1725609347715,7.7666,128.76,128.72,7.7687]
[1725609348726,7.7666,128.76,128.73,7.7681]
[1725609348921,7.766,128.77,128.73,7.7681]
[1725609349144,7.7652,128.78,128.74,7.7673]
[1725609349738,7.7652,128.78,128.75,45.0]
[1725609350119,7.7658,128.77,128.75,45.0]
[1725609351436,7.7654,128.78,128.75,45.0]
[1725609351947,7.7648,128.79,128.75,52.7669]
[1725609352238,20.0,128.78,128.75,52.7669]
[1725609353844,20.0,128.78,128.76,7.7663]
[1725609354027,7.764,128.8,128.77,52.7656]
[1725609354242,7.764,128.8,128.78,45.0]
[1725609354744,7.764,128.8,128.77,45.0]
[1725609354923,7.7645,128.79,128.77,45.0]
[1725609356343,7.7645,128.79,128.76,45.0]
[1725609358661,7.7645,128.79,128.76,52.7661]
[1725609359466,7.7645,128.79,128.76,45.0]
[1725609359756,19.4084,128.81,128.73,19.4202]
[1725609359959,7.7662,128.77,128.73,27.188]
[1725609360348,7.7662,128.77,128.74,7.7675]
[1725609360937,7.7652,128.78,128.74,7.7675]
[1725609361138,7.7659,128.77,128.75,45.0]
[1725609361353,7.7659,128.77,128.74,45.0]
[1725609362264,19.4115,128.79,128.72,7.7685]
[1725609362449,20.0,128.78,128.72,7.7685]
[1725609362649,20.0,128.78,128.69,50.0]
[1725609362650,19.4146,128.77,128.69,19.4263]
[1725609362854,20.0,128.76,128.69,19.4263]
[1725609363555,7.7692,128.72,128.69,19.4263]
[1725609363757,7.7692,128.72,128.68,23.7408]
[1725609364063,7.7694,128.71,128.68,23.7408]
[1725609364682,7.7689,128.72,128.68,23.7408]
[1725609364967,20.0,128.76,128.63,60.35781291]
[1725609364968,7.7701,128.7,128.66,7.7722]
[1725609366452,7.7706,128.69,128.65,7.7728]
[1725609366964,19.4237,128.71,128.64,19.433]
[1725609367139,7.7719,128.67,128.64,19.433]
[1725609367862,7.7719,128.67,128.63,24.3852]
[1725609368763,7.7724,128.66,128.63,24.3852]
[1725609369438,7.772,128.67,128.63,24.3852]
[1725609370154,7.772,128.67,128.64,45.0]
[1725609372275,7.7712,128.68,128.64,52.7733]
[1725609372446,20.0,128.7,128.64,45.0]
[1725609372769,20.0,128.72,128.64,45.0]
[1725609372948,22.3097,128.73,128.65,19.4324]
[1725609373149,22.3097,128.73,128.66,45.0]
[1725609373368,7.7696,128.71,128.67,7.7718]
[1725609373559,7.7696,128.71,128.68,45.0]
[1725609373856,7.769,128.72,128.68,52.7712]
[1725609377468,7.7685,128.73,128.69,7.7704]
[1725609377668,15.3327,128.76,128.7,45.0]
[1725609377870,7.7682,128.73,128.7,45.0]
[1725609378773,7.7682,128.73,128.7,52.7699]
[1725609378960,7.7664,128.76,128.71,19.4233]
[1725609379154,7.7664,128.76,128.7,45.0]
[1725609379155,7.7654,128.78,128.72,45.0]
[1725609379473,7.7654,128.78,128.74,7.7671]
[1725609379657,7.7654,128.78,128.75,45.0]
[1725609379859,7.7649,128.79,128.75,52.7667]
[1725609380377,7.7639,128.8,128.76,27.1818]
[1725609380549,7.7639,128.8,128.77,45.0]
[1725609382978,20.0,128.79,128.77,45.0]
[1725609383694,20.0,128.79,128.77,52.7657]
[1725609383857,20.0,128.8,128.77,52.7657]
[1725609384176,27.7641,128.8,128.77,45.0]
[1725609385265,20.0,128.8,128.77,52.7657]
[1725609385475,20.0,128.8,128.78,7.7651]
[1725609385674,27.7634,128.81,128.79,45.0]
[1725609385872,27.7634,128.81,128.77,52.7655]
[1725609387188,7.7641,128.8,128.77,45.0]
[1725609388373,7.7641,128.8,128.77,52.7657]
[1725609389580,7.7655,128.78,128.74,7.7671]
[1725609390889,7.7655,128.78,128.75,52.7669]
[1725609391067,7.7646,128.79,128.75,52.7669]
[1725609391268,7.7646,128.79,128.75,72.1842]
[1725609395664,7.7646,128.79,128.75,72.1839]
[1725609396987,20.0,128.81,128.75,72.1839]
[1725609397284,7.7659,128.77,128.73,7.7681]
[1725609398065,19.4107,128.8,128.72,19.4205]
[1725609398066,7.7666,128.76,128.72,27.189]
[1725609399065,7.7676,128.74,128.7,26.0748]
[1725609399266,7.7672,128.75,128.71,7.7692]
[1725609399493,7.7677,128.74,128.71,7.7692]
[1725609399675,7.7681,128.73,128.7,19.4248]
[1725609400184,7.7677,128.74,128.7,27.1947]
[1725609400578,7.7677,128.74,128.71,7.7693]
[1725609400999,7.7677,128.74,128.72,45.0]
[1725609401182,41.4316,128.77,128.72,45.0]
[1725609401387,7.7673,128.75,128.72,45.0]
[1725609401582,20.0,128.74,128.72,45.0]
[1725609402393,7.7661,128.77,128.72,64.4207]
[1725609402580,7.7661,128.77,128.72,72.189]
[1725609402977,7.767,128.75,128.72,64.4207]
[1725609403274,7.7667,128.76,128.72,72.1891]
[1725609404300,7.7667,128.76,128.73,7.7681]
[1725609404508,7.7667,128.76,128.74,45.0]
[1725609405172,7.7659,128.77,128.74,45.0]
[1725609405388,20.0,128.76,128.74,45.0]
[1725609405690,20.0,128.76,128.74,52.7675]
[1725609405887,44.52192505,128.81,128.75,7.7668]